bitfinex-derivatives/quotes_BTCF0:USTF0_20240830
["timestamp","ask_amount","ask_price","bid_price","bid_amount"]
[1725026655105,0.01025076,59830.0,59829.0,1.030356]
[1725026655296,7.6e-07,59830.0,59829.0,1.830356]
[1725026655599,0.444313,59862.0,59835.0,0.08355]
[1725026655799,0.083519,59858.0,59855.0,0.083521]
[1725026655995,0.11,59858.0,59857.0,0.083519]
[1725026656398,0.193518,59858.0,59855.0,0.2]
[1725026656906,0.083521,59857.0,59855.0,0.2]
[1725026657201,0.083521,59857.0,59852.0,0.08377555]
[1725026657202,0.083525,59853.0,59852.0,0.00025055]
[1725026657392,0.554325,59853.0,59852.0,0.00025055]
[1725026657995,0.11,59853.0,59852.0,0.00025055]
[1725026658198,0.11,59853.0,59852.0,1.18501655]
[1725026658392,0.11,59853.0,59852.0,0.94581655]
[1725026658596,0.11,59853.0,59852.0,0.44457655]
[1725026659097,0.083508,59866.0,59852.0,1.46229055]
[1725026659291,0.11,59866.0,59865.0,0.083508]
[1725026659999,0.083508,59865.0,59864.0,0.36172]
[1725026660198,0.11,59865.0,59864.0,0.08351]
[1725026660511,0.11,59865.0,59855.0,0.7808]
[1725026660696,0.4708,59865.0,59852.0,0.00025055]
[1725026660893,0.1439,59864.0,59855.0,0.083522]
[1725026661198,0.1439,59864.0,59852.0,0.00025055]
[1725026661199,0.083525,59853.0,59852.0,0.00025055]
[1725026661394,0.11,59853.0,59852.0,0.00025055]
[1725026661799,0.11,59853.0,59852.0,0.08377655]
[1725026662301,0.554325,59853.0,59852.0,0.00025055]
[1725026662508,0.63785,59853.0,59852.0,0.00025055]
[1725026662904,0.11,59853.0,59852.0,0.08377655]
[1725026663906,0.11,59853.0,59852.0,0.08477655]
[1725026664697,0.193525,59853.0,59852.0,0.28149655]
[1725026665296,0.193525,59853.0,59852.0,0.00125055]
[1725026666298,0.193525,59853.0,59852.0,0.19797055]
[1725026668107,0.193525,59853.0,59852.0,0.00125055]
[1725026668508,1.37829,59853.0,59852.0,0.00125055]
[1725026668708,1.51789,59853.0,59852.0,0.00125055]
[1725026669009,1.434365,59853.0,59852.0,0.00125055]
[1725026669209,0.2496,59853.0,59852.0,0.00025055]
[1725026669515,0.333125,59853.0,59852.0,0.00025055]
[1725026670115,0.333125,59853.0,59852.0,0.00125055]
[1725026670520,1.51789,59853.0,59852.0,0.00125055]
[1725026670812,0.41665,59853.0,59852.0,0.00125055]
[1725026671023,1.35084,59853.0,59836.0,0.280268]
[1725026671221,1.35084,59853.0,59836.0,0.19672]
[1725026671222,0.167094,59837.0,59836.0,0.19672]
[1725026671518,0.564348,59837.0,59818.0,0.06614709]
[1725026671720,0.564348,59837.0,59810.0,0.04938031]
[1725026671721,0.3608,59823.0,59810.0,0.04938031]
[1725026672013,0.3608,59815.0,59811.0,0.00025055]
[1725026672312,0.083582,59812.0,59811.0,0.00025055]
[1725026672512,0.193582,59812.0,59811.0,0.00025055]
[1725026672707,0.193582,59812.0,59804.0,0.3608]
[1725026672708,0.11,59812.0,59804.0,0.28588602]
[1725026672908,0.3608,59809.0,59804.0,0.28588602]
[1725026673105,0.4708,59809.0,59794.0,0.04938031]
[1725026673304,0.4708,59809.0,59791.0,0.19672]
[1725026673305,0.3608,59803.0,59792.0,0.04938031]
[1725026673510,0.08361,59792.0,59790.0,0.36176]
[1725026673715,0.08361,59792.0,59781.0,0.13300531]
[1725026673716,0.19361,59792.0,59785.0,0.00025077]
[1725026674414,0.11,59792.0,59785.0,0.00025077]
[1725026674907,0.11,59792.0,59788.0,0.3608]
[1725026675406,0.096,59792.0,59788.0,0.3608]
[1725026675609,0.096,59792.0,59788.0,0.444415]
[1725026675917,0.096,59792.0,59790.0,0.083612]
[1725026676103,0.00025077,59797.0,59796.0,0.083605]
[1725026676311,0.3608,59821.0,59796.0,0.55756]
[1725026676507,0.4908,59821.0,59805.0,0.083592]
[1725026676709,0.083578,59815.0,59807.0,0.083589]
[1725026676913,0.08,59815.0,59811.0,0.3608]
[1725026677309,0.083557,59831.0,59813.0,0.7808]
[1725026677510,0.00025034,59828.0,59821.0,0.3608]
[1725026677716,0.12025034,59828.0,59822.0,0.083568]
[1725026677919,0.12025034,59828.0,59823.0,0.3608]
[1725026678117,0.083571,59820.0,59818.0,0.5576]
[1725026678314,0.083571,59820.0,59818.0,0.3608]
[1725026678315,0.093571,59820.0,59818.0,0.3608]
[1725026678525,0.083575,59817.0,59816.0,0.00025077]
[1725026678724,0.03,59817.0,59816.0,0.00025077]
[1725026679019,0.00025034,59828.0,59816.0,0.36105077]
[1725026679223,0.11025034,59828.0,59816.0,0.36105077]
[1725026679611,0.11025034,59828.0,59822.0,0.083568]
[1725026679813,0.11025034,59828.0,59822.0,0.3608]
[1725026680019,0.11025034,59828.0,59824.0,0.083565]
[1725026680516,0.11025034,59828.0,59816.0,0.36105077]
[1725026680517,0.083567,59823.0,59816.0,0.00025077]
[1725026680720,0.083572,59819.0,59816.0,0.00025077]
[1725026680918,0.02,59819.0,59816.0,0.08382677]
[1725026681222,0.02,59819.0,59816.0,0.00025077]
[1725026681426,0.083575,59817.0,59816.0,0.00025077]
[1725026681621,0.554375,59817.0,59816.0,0.00025077]
[1725026682018,0.193575,59817.0,59816.0,0.00025077]
[1725026682524,0.11,59817.0,59816.0,0.00025077]
[1725026682727,0.11,59817.0,59816.0,0.08382777]
[1725026682917,0.11,59817.0,59816.0,0.00025077]
[1725026683414,0.193575,59817.0,59816.0,0.00025077]
[1725026683816,0.206575,59817.0,59816.0,0.00025077]
[1725026684620,0.193575,59817.0,59816.0,0.00025077]
[1725026684923,0.206575,59817.0,59816.0,0.00025077]
[1725026685517,0.29015,59817.0,59816.0,0.00025077]
[1725026685722,1.39167,59817.0,59816.0,1e-08]
[1725026685921,1.308095,59817.0,59816.0,1e-08]
[1725026686127,1.39167,59817.0,59816.0,1e-08]
[1725026686324,1.75347,59817.0,59816.0,1e-08]
[1725026686528,1.837045,59817.0,59816.0,1e-08]
[1725026687322,1.823045,59817.0,59816.0,1e-08]
[1725026687533,1.84559401,59817.0,59816.0,1e-08]
[1725026687935,1.87342527,59817.0,59816.0,1e-08]
[1725026688524,1.95700027,59817.0,59816.0,1e-08]
[1725026688733,0.083613,59790.0,59789.0,0.3608]
[1725026688921,0.193613,59790.0,59789.0,0.3608]
[1725026689221,0.083614,59789.0,59787.0,0.083617]
[1725026689428,0.083614,59789.0,59788.0,0.444416]
[1725026689429,0.11,59789.0,59788.0,0.444416]
[1725026690329,0.108,59789.0,59788.0,0.805216]
[1725026691124,0.108,59789.0,59788.0,0.808216]
[1725026693130,0.108,59789.0,59788.0,1.716408]
[1725026693335,0.00025077,59794.0,59793.0,0.083609]
[1725026693635,0.01025077,59794.0,59793.0,0.083609]
[1725026694533,0.01325077,59794.0,59793.0,0.083609]
[1725026695424,0.06325077,59794.0,59793.0,0.444409]
[1725026695828,0.06325077,59794.0,59793.0,0.528018]
[1725026696034,0.06325077,59794.0,59793.0,0.888018]
[1725026696623,0.06325077,59794.0,59793.0,0.804409]
[1725026696937,0.06125077,59794.0,59793.0,0.805409]
[1725026697139,0.28584217,59809.0,59801.0,0.083597]
[1725026697336,0.0836,59800.0,59798.0,0.0836]
[1725026697533,0.1936,59800.0,59798.0,0.0836]
[1725026697834,0.3608,59799.0,59793.0,0.001]
[1725026698134,0.083607,59794.0,59793.0,0.001]
[1725026698327,0.193607,59794.0,59793.0,0.001]
[1725026698528,0.193607,59794.0,59793.0,0.084609]
[1725026699234,0.11,59794.0,59793.0,0.805409]
[1725026699647,0.11,59794.0,59793.0,0.084609]
[1725026699829,0.11,59794.0,59793.0,0.444409]
[1725026700229,0.193607,59794.0,59793.0,0.083609]
[1725026700544,0.083612,59791.0,59790.0,0.08386077]
[1725026700835,0.13,59791.0,59790.0,0.08386077]
[1725026701833,0.13,59791.0,59790.0,0.13324108]
[1725026702030,0.13,59791.0,59790.0,0.71861408]
[1725026702238,0.003,59794.0,59793.0,0.083609]
[1725026702438,0.103,59794.0,59793.0,0.444409]
[1725026702639,0.186607,59794.0,59793.0,0.49405158]
[1725026702839,0.186607,59794.0,59793.0,0.444409]
[1725026703230,0.183607,59794.0,59793.0,0.444409]
[1725026703730,0.267214,59794.0,59793.0,0.3608]
[1725026703931,0.083612,59791.0,59790.0,0.00125077]
[1725026704132,0.203612,59791.0,59790.0,0.00025077]
[1725026704326,0.12,59791.0,59790.0,0.08386377]
[1725026704543,0.12,59791.0,59790.0,0.21711935]
[1725026704846,0.12,59791.0,59790.0,0.16747677]
[1725026705335,0.000908,59791.0,59790.0,1.43646277]
[1725026705540,0.3608,59821.0,59793.0,0.083609]
[1725026705740,0.083575,59818.0,59801.0,0.611594]
[1725026705939,0.3608,59830.0,59809.0,0.083586]
[1725026706241,0.083572,59819.0,59818.0,0.3608]
[1725026706537,0.193572,59819.0,59818.0,0.3608]
[1725026706736,0.083584,59811.0,59810.0,0.19512]
[1725026706947,0.083584,59811.0,59804.0,0.083593]
[1725026706948,0.083588,59808.0,59804.0,0.083593]
[1725026707235,0.12,59808.0,59801.0,0.653477]
[1725026707634,0.12,59808.0,59801.0,0.56988]
[1725026707825,0.12,59808.0,59804.0,0.083592]
[1725026708225,0.083592,59805.0,59804.0,0.083592]
[1725026708433,0.083592,59805.0,59801.0,0.20992]
[1725026708434,0.083596,59802.0,59801.0,0.20992]
[1725026708636,0.083598,59801.0,59800.0,0.00025077]
[1725026708833,0.213598,59801.0,59800.0,0.00025077]
[1725026709034,1.315278,59801.0,59800.0,0.00025077]
[1725026709635,1.315278,59801.0,59800.0,1e-08]
[1725026709636,1.398876,59801.0,59800.0,1e-08]
[1725026709836,1.670776,59801.0,59800.0,1e-08]
[1725026710040,1.754374,59801.0,59800.0,1e-08]
[1725026710235,0.083613,59791.0,59777.0,0.04961778]
[1725026710539,0.08362,59786.0,59777.0,0.04961778]
[1725026710745,0.083621,59785.0,59781.0,0.083626]
[1725026710935,0.203621,59785.0,59781.0,0.083626]
[1725026711341,0.12,59785.0,59778.0,0.04961778]
[1725026711540,0.12,59785.0,59783.0,0.3608]
[1725026711740,0.12,59785.0,59784.0,0.083621]
[1725026712048,0.12,59785.0,59784.0,1.0124145]
[1725026712446,0.12,59785.0,59784.0,1.546221]
[1725026712746,0.001,59791.0,59790.0,0.167226]
[1725026712931,0.001,59791.0,59790.0,1.69607064]
[1725026713134,0.3608,59815.0,59797.0,0.083603]
[1725026713340,0.4908,59815.0,59810.0,0.3608]
[1725026713648,0.4908,59815.0,59814.0,0.083579]
[1725026713649,0.13,59815.0,59814.0,0.083579]
[1725026714339,0.13,59815.0,59814.0,0.14984612]
[1725026714539,0.137,59815.0,59814.0,0.083579]
[1725026714944,0.137,59815.0,59811.0,0.06626712]
[1725026715244,0.083588,59808.0,59806.0,0.04968423]
[1725026715445,0.203588,59808.0,59805.0,0.04968423]
[1725026715641,0.203588,59808.0,59804.0,0.13327723]
[1725026715841,0.203588,59808.0,59805.0,0.04968423]
[1725026716248,0.203588,59808.0,59804.0,0.13327723]
[1725026716548,0.203588,59808.0,59805.0,0.04968423]
[1725026716850,0.203588,59808.0,59804.0,0.04968423]
[1725026717036,0.12,59808.0,59807.0,0.08383977]
[1725026717439,0.13,59808.0,59807.0,0.08483977]
[1725026717641,0.213588,59808.0,59807.0,0.00125077]
[1725026718236,0.214588,59808.0,59807.0,0.00125077]
[1725026718646,0.131,59808.0,59807.0,0.08483977]
[1725026719056,0.044991,59808.0,59807.0,1.69002877]
[1725026719353,0.083567,59823.0,59808.0,0.083587]
[1725026719548,0.163567,59823.0,59822.0,0.3608]
[1725026719740,0.08,59823.0,59822.0,0.3608]
[1725026720047,0.08,59823.0,59822.0,0.444368]
[1725026721156,0.083,59823.0,59822.0,0.445368]
[1725026722947,1.54528,59823.0,59800.0,0.04966092]
[1725026723247,0.08361,59792.0,59791.0,0.3608]
[1725026723444,0.11,59792.0,59791.0,0.3608]
[1725026723648,0.11,59792.0,59789.0,0.3608]
[1725026724045,0.083616,59789.0,59784.0,0.35879484]
[1725026724248,0.083617,59788.0,59784.0,0.35879484]
[1725026724441,0.083617,59788.0,59782.0,0.00025077]
[1725026724442,0.083623,59783.0,59782.0,0.00025077]
[1725026724639,0.03,59783.0,59782.0,0.36105077]
[1725026724842,0.03,59783.0,59782.0,0.44467477]
[1725026725046,0.03,59783.0,59782.0,0.36105077]
[1725026725453,0.113623,59783.0,59782.0,0.36105077]
[1725026725660,0.474423,59783.0,59782.0,0.00025077]
[1725026725842,1.4926,59783.0,59760.0,0.04966092]
[1725026726159,1.4926,59783.0,59759.0,0.3608]
[1725026726160,0.3608,59772.0,59759.0,0.3608]
[1725026726354,0.4908,59772.0,59759.0,0.3608]
[1725026726746,0.3608,59766.0,59760.0,0.00025077]
[1725026726960,0.3608,59761.0,59760.0,0.00025077]
[1725026727252,1.5638,59761.0,59739.0,0.3608]
[1725026727442,0.3608,59747.0,59739.0,0.3608]
[1725026727642,0.4408,59747.0,59739.0,0.3608]
[1725026728044,0.4408,59747.0,59739.0,0.28523488]
[1725026728245,0.083682,59741.0,59739.0,0.28523488]
[1725026728446,0.3608,59740.0,59737.0,0.00025099]
[1725026728653,0.585886,59739.0,59737.0,0.00025099]
[1725026728860,0.585886,59739.0,59737.0,1e-08]
[1725026728861,0.3608,59738.0,59737.0,1e-08]
[1725026729042,0.083699,59729.0,59710.0,0.3608]
[1725026729250,0.3608,59717.0,59710.0,0.3608]
[1725026729664,0.494516,59717.0,59710.0,0.3608]
[1725026729948,0.083717,59716.0,59710.0,0.3608]
[1725026730143,0.133717,59716.0,59710.0,0.3608]
[1725026730345,0.05,59716.0,59710.0,0.3608]
[1725026730655,0.05,59716.0,59708.0,0.00025099]
[1725026730656,0.083726,59709.0,59708.0,0.00025099]
[1725026730842,0.3608,59711.0,59708.0,0.00025099]
[1725026731152,0.001,59716.0,59708.0,0.00025099]
[1725026731359,0.051,59716.0,59713.0,0.08372]
[1725026731653,0.001,59716.0,59711.0,0.3608]
[1725026731849,0.3618,59716.0,59708.0,0.00025099]
[1725026732057,0.083718,59715.0,59711.0,0.3608]
[1725026732448,0.001,59716.0,59711.0,0.3608]
[1725026732845,0.001,59716.0,59713.0,0.08372]
[1725026733152,0.051,59716.0,59714.0,0.083718]
[1725026733452,0.00025099,59719.0,59712.0,0.3608]
[1725026733760,0.00025099,59719.0,59717.0,0.083714]
[1725026733761,0.05025099,59719.0,59717.0,0.083714]
[1725026734650,0.05025099,59719.0,59718.0,0.50236]
[1725026734847,1e-08,59719.0,59718.0,0.50236]
[1725026735045,1e-08,59719.0,59718.0,1.10236]
[1725026735251,0.003,59719.0,59718.0,1.186074]
[1725026735957,0.003,59719.0,59718.0,0.083714]
[1725026737261,0.053,59719.0,59718.0,0.083714]
[1725026738459,0.00025122,59724.0,59723.0,0.083707]
[1725026738663,0.10025122,59724.0,59713.0,0.00025122]
[1725026738859,0.003,59719.0,59714.0,0.083719]
[1725026739059,0.3608,59715.0,59714.0,0.083719]
[1725026739263,0.13,59715.0,59714.0,0.083719]
[1725026742465,0.13,59715.0,59714.0,0.085719]
[1725026743161,0.07136362,59715.0,59714.0,0.085719]
[1725026743362,0.07136362,59715.0,59714.0,0.002]
[1725026743363,0.15508162,59715.0,59714.0,0.002]
[1725026743963,0.07136362,59715.0,59714.0,0.446519]
[1725026744168,0.07136362,59715.0,59714.0,0.444519]
[1725026744468,0.07236362,59715.0,59714.0,0.448519]
[1725026745066,0.07136362,59715.0,59714.0,0.444519]
[1725026745371,0.07236362,59715.0,59714.0,0.087719]
[1725026745563,0.07236362,59715.0,59714.0,0.448519]
[1725026746068,0.07136362,59715.0,59714.0,0.448519]
[1725026746463,0.15508162,59715.0,59714.0,0.3648]
[1725026746767,0.15508162,59715.0,59714.0,0.448519]
[1725026746768,0.07136362,59715.0,59714.0,0.448519]
[1725026747656,0.07136362,59715.0,59714.0,0.444519]
[1725026747857,0.15508162,59715.0,59714.0,0.3628]
[1725026748058,0.23879962,59715.0,59714.0,0.002]
[1725026749761,0.23879962,59715.0,59713.0,0.00025122]
[1725026749762,0.167438,59714.0,59713.0,0.00025122]
[1725026750066,0.083738,59701.0,59688.0,0.3608]
[1725026750260,0.083749,59693.0,59691.0,0.083752]
[1725026750459,0.13,59693.0,59688.0,0.3608]
[1725026750764,0.13,59693.0,59680.0,0.06621456]
[1725026750765,0.3608,59691.0,59682.0,0.04966092]
[1725026751069,0.3578,59684.0,59681.0,0.00025122]
[1725026751371,0.083764,59682.0,59681.0,0.00025122]
[1725026751676,0.12,59682.0,59681.0,0.00025122]
[1725026751964,0.12,59682.0,59665.0,0.04966092]
[1725026751965,0.08378,59671.0,59665.0,0.04966092]
[1725026752169,0.08378,59671.0,59663.0,0.04966092]
[1725026752170,0.19378,59671.0,59663.0,0.04966092]
[1725026752469,0.11,59671.0,59670.0,0.3608]
[1725026752672,0.11,59671.0,59669.0,0.083782]
[1725026752871,0.11,59671.0,59670.0,0.3608]
[1725026753057,0.05,59671.0,59670.0,0.42701456]
[1725026753259,0.00025122,59676.0,59675.0,0.083774]
[1725026753560,0.3608,59686.0,59675.0,0.86352]
[1725026753757,0.4708,59686.0,59682.0,0.04954227]
[1725026753961,0.083763,59683.0,59680.0,0.04954227]
[1725026754161,0.083763,59683.0,59671.0,0.3608]
[1725026754162,0.444566,59681.0,59676.0,0.04954227]
[1725026754365,0.4808,59681.0,59675.0,0.04954227]
[1725026754579,0.4808,59681.0,59676.0,0.06605636]
[1725026754867,0.4808,59681.0,59679.0,0.04961071]
[1725026755061,0.12,59681.0,59680.0,0.04961071]
[1725026755371,0.12,59681.0,59679.0,0.04961071]
[1725026755372,0.083767,59680.0,59679.0,0.04961071]
[1725026755557,0.083769,59679.0,59676.0,0.06605636]
[1725026755762,0.12,59679.0,59676.0,0.06605636]
[1725026756169,0.50272,59678.0,59676.0,0.06605636]
[1725026756370,0.62272,59678.0,59676.0,0.06605636]
[1725026756571,0.62272,59678.0,59672.0,0.08402922]
[1725026756875,0.20377,59678.0,59677.0,0.06627968]
[1725026757359,0.70649,59678.0,59677.0,0.06627968]
[1725026757559,0.70649,59678.0,59677.0,0.06628452]
[1725026757762,0.12,59678.0,59677.0,0.083771]
[1725026758064,0.06970851,59678.0,59677.0,0.29427322]
[1725026758259,0.07070851,59678.0,59677.0,0.21142758]
[1725026758970,1.17342851,59678.0,59675.0,0.08285115]
[1725026759163,0.083774,59675.0,59674.0,0.08285115]
[1725026759363,0.083776,59674.0,59673.0,0.08285115]
[1725026759568,0.11,59674.0,59673.0,0.2114475]
[1725026761273,0.11,59674.0,59673.0,0.083777]
[1725026761460,0.11,59674.0,59672.0,0.08305496]
[1725026761666,0.083777,59673.0,59672.0,0.00025122]
[1725026761866,0.203777,59673.0,59672.0,0.00025122]
[1725026762067,0.706537,59673.0,59672.0,0.00025122]
[1725026762279,1.151114,59673.0,59672.0,0.00025122]
[1725026763078,2.111114,59673.0,59672.0,0.00025122]
[1725026763268,1.511114,59673.0,59672.0,0.00025122]
[1725026763467,2.112114,59673.0,59672.0,0.0499179]
[1725026763770,1.428337,59673.0,59672.0,0.04966524]
[1725026763975,0.925577,59673.0,59668.0,0.06622046]
[1725026764273,0.4818,59673.0,59672.0,0.083778]
[1725026764882,0.121,59673.0,59672.0,0.73979041]
[1725026765079,0.121,59673.0,59672.0,0.21143441]
[1725026765970,0.121,59673.0,59672.0,1.39797241]
[1725026766176,0.061,59673.0,59672.0,0.89719305]
[1725026766376,0.083757,59687.0,59672.0,0.89719305]
[1725026766377,0.444539,59701.0,59677.0,0.083771]
[1725026766573,0.4808,59701.0,59699.0,0.04960258]
[1725026766766,0.564538,59701.0,59700.0,0.19252]
[1725026767475,0.4808,59701.0,59700.0,0.19248]
[1725026767673,0.083745,59696.0,59695.0,0.066388]
[1725026767874,1.524545,59696.0,59695.0,0.00025122]
[1725026768077,1.75085,59696.0,59695.0,0.00025122]
[1725026768279,1.58336,59696.0,59693.0,9.9e-07]
[1725026768576,0.083752,59691.0,59678.0,0.27515098]
[1725026768772,0.4908,59691.0,59688.0,0.06622487]
[1725026768974,0.4908,59691.0,59680.0,0.083766]
[1725026768975,0.4908,59691.0,59689.0,0.06622487]
[1725026769176,0.13,59691.0,59690.0,0.06621016]
[1725026769373,0.083757,59687.0,59685.0,0.00025122]
[1725026769572,0.083759,59686.0,59685.0,0.19273122]
[1725026769777,0.203759,59686.0,59685.0,0.19273122]
[1725026769975,0.12,59686.0,59685.0,0.19273122]
[1725026770274,0.12,59686.0,59685.0,0.27649122]
[1725026771279,0.12,59686.0,59685.0,0.40412539]
[1725026771785,0.203759,59686.0,59685.0,0.12788539]
[1725026771983,0.203759,59686.0,59685.0,0.27555724]
[1725026771984,0.12,59686.0,59685.0,0.27555724]
[1725026772186,0.12,59686.0,59685.0,0.84868549]
[1725026772369,0.06134257,59686.0,59685.0,0.84868549]
[1725026772572,5.7e-07,59686.0,59685.0,2.05053066]
[1725026772775,0.005,59691.0,59690.0,0.167506]
[1725026772986,0.3608,59704.0,59695.0,0.083746]
[1725026773284,0.05990844,59696.0,59695.0,1.07474027]
[1725026773486,0.05990844,59696.0,59695.0,0.66913072]
[1725026773787,0.05990844,59696.0,59695.0,0.586306]
[1725026773987,0.05990844,59696.0,59695.0,1.67470985]
[1725026774284,0.3608,59717.0,59695.0,1.77408488]
[1725026774475,0.00025122,59712.0,59710.0,0.0662381]
[1725026774675,0.20397322,59712.0,59711.0,0.0662381]
[1725026774979,0.48105122,59712.0,59709.0,0.0662381]
[1725026775180,0.48105122,59712.0,59702.0,0.16653362]
[1725026775181,0.083735,59703.0,59702.0,0.16653362]
[1725026775477,0.213735,59703.0,59702.0,0.276216]
[1725026775783,0.213735,59703.0,59701.0,0.44359762]
[1725026775784,0.083736,59702.0,59701.0,0.44359762]
[1725026776083,0.203736,59702.0,59701.0,0.44359762]
[1725026776279,0.167476,59701.0,59700.0,0.00025122]
[1725026776586,0.203738,59701.0,59700.0,0.00025122]
[1725026777082,0.203738,59701.0,59700.0,0.08399022]
[1725026777289,0.12,59701.0,59700.0,0.08399022]
[1725026777586,0.127,59701.0,59700.0,0.29551761]
[1725026777782,0.127,59701.0,59700.0,0.08499022]
[1725026778377,0.08510875,59701.0,59700.0,0.08499022]
[1725026778987,0.08510875,59701.0,59700.0,1.67590974]
[1725026779190,0.03484551,59701.0,59700.0,1.67590974]
[1725026779381,0.03484551,59701.0,59700.0,1.07590974]
[1725026779580,0.02784551,59701.0,59700.0,1.67490974]
[1725026779889,0.02784551,59701.0,59700.0,1.75864874]
[1725026780982,0.02784551,59701.0,59700.0,1.03019466]
[1725026781179,0.02784551,59701.0,59700.0,0.44479022]
[1725026781389,0.11158351,59701.0,59700.0,0.00025122]
[1725026781579,0.11158351,59701.0,59700.0,0.36105122]
[1725026781779,0.11158351,59701.0,59700.0,0.00025122]
[1725026782402,0.19532151,59701.0,59700.0,0.00025122]
[1725026783680,0.69784151,59701.0,59700.0,0.00025122]
[1725026783884,0.69984151,59701.0,59700.0,0.00025122]
[1725026784281,1.13236551,59701.0,59691.0,0.18824]
[1725026784482,1.13236551,59701.0,59681.0,0.18824]
[1725026784483,0.08375,59692.0,59681.0,0.18824]
[1725026784680,0.083764,59682.0,59681.0,0.18824]
[1725026784881,0.083774,59676.0,59674.0,0.3608]
[1725026785082,0.203774,59676.0,59674.0,0.3608]
[1725026785289,0.083774,59675.0,59674.0,0.3608]
[1725026785593,0.203774,59675.0,59674.0,0.3608]
[1725026786983,0.203775,59675.0,59669.0,0.00025122]
[1725026787185,0.203775,59675.0,59674.0,0.001]
[1725026788193,0.28755,59675.0,59674.0,0.001]
[1725026788386,0.706495,59675.0,59674.0,0.001]
[1725026788581,0.203775,59675.0,59674.0,0.001]
[1725026788783,0.12,59675.0,59674.0,0.001]
[1725026788984,0.12,59675.0,59674.0,0.084776]
[1725026789389,0.121,59675.0,59674.0,0.083776]
[1725026790689,0.12,59675.0,59674.0,0.444576]
[1725026790887,0.11974878,59675.0,59674.0,1.992072]
[1725026791080,0.00025122,59681.0,59680.0,0.083767]
[1725026791397,0.08,59687.0,59686.0,0.083759]
[1725026791587,0.05,59687.0,59686.0,0.444559]
[1725026791787,0.05,59687.0,59686.0,1.630958]
[1725026791984,0.05,59687.0,59686.0,1.907199]
[1725026792191,0.05,59687.0,59681.0,0.06630581]
[1725026792192,0.7708,59687.0,59681.0,0.06630581]
[1725026792388,0.05,59687.0,59680.0,0.3608]
[1725026792589,0.083763,59683.0,59680.0,0.3608]
[1725026792792,0.12,59683.0,59680.0,0.3608]
[1725026793786,0.083766,59681.0,59680.0,0.3608]
[1725026794092,0.076768,59679.0,59678.0,0.00025122]
[1725026794293,0.270536,59679.0,59678.0,0.00025122]
[1725026794497,1.373216,59679.0,59678.0,2.2e-07]
[1725026794688,0.773216,59679.0,59678.0,2.2e-07]
[1725026794893,0.186768,59679.0,59678.0,2.2e-07]
[1725026796198,0.182768,59679.0,59678.0,2.2e-07]
[1725026796796,0.185768,59679.0,59678.0,2.2e-07]
[1725026796998,0.186768,59679.0,59678.0,0.00600022]
[1725026799996,0.190768,59679.0,59678.0,0.00100022]
[1725026800306,0.191768,59679.0,59678.0,0.00100022]
[1725026801802,0.191768,59679.0,59652.0,0.36]
[1725026801803,0.083795,59660.0,59652.0,0.36]
[1725026802005,0.083802,59655.0,59654.0,0.18832]
[1725026802197,0.153802,59655.0,59654.0,0.6912]
[1725026802505,0.07,59655.0,59654.0,1.135804]
[1725026802690,0.07,59655.0,59654.0,1.735804]
[1725026803099,0.00025144,59660.0,59659.0,0.083797]
[1725026803309,0.06025144,59660.0,59659.0,0.804597]
[1725026803499,0.06025144,59660.0,59659.0,1.907437]
[1725026804197,0.06025144,59660.0,59659.0,0.444597]
[1725026804394,0.14504644,59660.0,59659.0,0.002]
[1725026804594,0.50684644,59660.0,59659.0,0.002]
[1725026805303,0.50684644,59660.0,59652.0,0.097806]
[1725026805304,0.16761,59653.0,59652.0,0.014]
[1725026805502,0.16761,59653.0,59632.0,0.3608]
[1725026805503,0.167618,59650.0,59638.0,0.36164]
[1725026805709,0.083825,59639.0,59638.0,0.3608]
[1725026806003,0.4408,59639.0,59629.0,0.18564]
[1725026806195,0.075,59639.0,59632.0,0.3608]
[1725026806391,0.4358,59639.0,59632.0,0.444634]
[1725026806607,0.4358,59639.0,59632.0,0.3608]
[1725026806797,0.08383,59635.0,59632.0,0.3608]
[1725026807110,0.18083,59635.0,59632.0,0.3608]
[1725026807309,0.069832,59634.0,59632.0,0.3608]
[1725026807501,0.083833,59633.0,59632.0,0.3608]
[1725026807803,0.203833,59633.0,59632.0,0.3608]
[1725026808304,0.083836,59631.0,59630.0,0.00016788]
[1725026808501,0.203836,59631.0,59630.0,0.00016788]
[1725026810210,0.204836,59631.0,59630.0,0.00016788]
[1725026810595,0.205836,59631.0,59630.0,0.00016788]
[1725026811107,0.083856,59617.0,59611.0,0.3608]
[1725026811295,0.05,59617.0,59611.0,0.3608]
[1725026811611,0.08386,59614.0,59612.0,0.083862]
[1725026811798,0.05,59614.0,59607.0,0.29343]
[1725026811996,0.083865,59611.0,59607.0,0.29343]
[1725026812192,0.27596205,59615.0,59607.0,0.29343]
[1725026812409,0.3608,59609.0,59600.0,0.3608]
[1725026812711,0.13,59609.0,59600.0,0.3608]
[1725026812905,0.13,59609.0,59608.0,0.3608]
[1725026813205,0.13,59609.0,59608.0,0.444668]
[1725026813406,0.08386,59614.0,59610.0,0.083865]
[1725026813705,0.08386,59614.0,59613.0,0.444661]
[1725026813706,0.11,59614.0,59613.0,0.444661]
[1725026814494,0.00125144,59615.0,59614.0,0.08386]
[1725026814699,4.4e-07,59615.0,59614.0,0.5871]
[1725026814911,0.0281234,59634.0,59615.0,0.50324]
[1725026815097,0.0281234,59634.0,59632.0,0.3608]
[1725026815098,0.11,59634.0,59632.0,0.3608]
[1725026815305,0.11,59634.0,59633.0,0.083833]
[1725026815497,0.193832,59634.0,59625.0,0.18572]
[1725026816003,0.11,59634.0,59633.0,0.083833]
[1725026816803,0.11,59634.0,59631.0,0.3608]
[1725026816995,0.083835,59632.0,59631.0,0.3608]
[1725026817197,0.083835,59632.0,59631.0,0.444636]